Cogmind - Beta 13 *** ADVENTURER MODE // 2024.07.04 @ 11:10:19 Player: Nanomusheens Result: Destroyed by G-34 Mercenary with Small Laser Performance ------------- Evolutions (0) 0 Regions Visited (1) 200 Robots Destroyed (10) 50 Value Destroyed (294) 294 Prototype IDs (0) 0 Alien Tech Used (0) 0 Bonus (0) 0 TOTAL SCORE: 544 Bonus ------- None Cogmind --------- Core Integrity 0/250 Matter 300/300 Energy 95/100 System Corruption 3% Temperature Cool (6) Movement Core (50) Location -10/Materials Parts ------- > --- POWER (1) -------- (None) > --- PROPULSION (2) --- (None) > --- UTILITY (2) ------ Signal Interpreter > --- WEAPON (2) ------- (None) > --- INVENTORY (5) ---- Heat Sink Small Storage Unit Light Armor Plating Peak State ------------ > --- POWER ------------ Light Ion Engine > --- PROPULSION ------- Aluminum Leg Aluminum Leg > --- UTILITY ---------- Heat Sink Light Armor Plating > --- WEAPON ----------- Assault Rifle Light Assault Rifle > --- INVENTORY -------- Ion Engine EM Pulse Gun [Rating: 7] Favorites ----------- Power Light Ion Engine Engine Light Ion Engine Propulsion Aluminum Leg Leg Aluminum Leg Utility Heat Sink Device Heat Sink Storage Small Storage Unit Processor Signal Interpreter Protection Light Armor Plating Weapon Light Assault Rifle Energy Gun EM Pulse Gun Ballistic Gun Light Assault Rifle Build | -11 -10 ------- Run | Yrd Mat Slots Evolved . | . . Power . | . . Propulsion . | . . Utility . | . . Weapon . | . . Parts Attached 14 | 6 8 Power 2 | 1 1 Engine 2 | 1 1 Core . | . . Reactor . | . . Propulsion 4 | 2 2 Treads . | . . Leg 4 | 2 2 Wheel . | . . Hover . | . . Flight . | . . Utility 5 | 1 4 Device 2 | 1 1 Storage 1 | . 1 Processor 1 | . 1 Hackware . | . . Protection 1 | . 1 Artifact . | . . Weapon 3 | 2 1 Energy Gun 1 | . 1 Energy Cannon . | . . Ballistic Gun 2 | 2 . Ballistic Cannon . | . . Launcher . | . . Special Weapon . | . . Impact Weapon . | . . Slashing Weapon . | . . Piercing Weapon . | . . Special Melee Weapon . | . . Unidentified Prototypes . | . . Parts Lost 9 | . 9 Power 2 | . 2 Propulsion 3 | . 3 Utility 1 | . 1 Weapon 3 | . 3 Highest Loss Streak 6 | . 6 To Critical Strikes . | . . Average Slot Usage (%) 90 | . 90 Engine 8 | . 8 Leg 27 | . 27 Device 13 | . 13 Processor 2 | . 2 Protection 11 | . 11 Energy Gun 4 | . 4 Ballistic Gun 20 | . 20 Naked Turns . | . . Heaviest Build 13 | 7 13 Greatest Support 20 | 20 20 Greatest Overweight (x) . | . . Average Overweight (x) . | . . Largest Inventory Capacity 8 | 5 8 Average Capacity 5 | 5 5 Most Carried 4 | 3 4 Average Carried 1 | . 2 Final Capacity 5 | 5 5 Final Carried 3 | 2 3 Class Distribution -------------------- 100% | Mutant Dominant Class ---------------- Mutant | -10/Materials Resources | -11 -10 ----------- Run | Yrd Mat Matter Collected 380 | 272 108 Remotely . | . . Salvage Created 326 | 31 295 Parts 25 | 2 23 Haulers Intercepted . | . . Recyclers Shooed . | . . Parts Field Recycled . | . . Retrieved Matter . | . . Parts Self-Destructed . | . . Prevented . | . . Kills | -11 -10 ------- Run | Yrd Mat Combat Hostiles Destroyed 7 | 1 6 Guns 6 | 1 5 AOE 1 | . 1 Classes Destroyed 3 | 1 2 Worker 1 | . 1 Watcher 2 | . 2 Grunt 7 | 1 6 Best Kill Streak 3 | 1 3 Combat Bots Only 2 | 1 2 Max Kills in Single Turn 2 | 1 2 Gunslinging . | . . Exploded 1 | . 1 Melee . | . . Uniques/NPCs Destroyed . | . . Combat | -11 -10 -------- Run | Yrd Mat Hostile Shots Fired 138 | 4 134 Missed 36 | 1 35 Damage Taken 996 | 25 971 Core 254 | . 254 Absorbed by Shields . | . . Ignored by Resistances 303 | 8 295 Core Remaining (%) 100 | 100 . Volleys Fired 36 | 3 33 Largest 2 | 2 2 Hottest 60 | 40 60 Shots Fired 55 | 6 49 Gun 55 | 6 49 Cannon . | . . Launcher . | . . Special . | . . Kinetic 45 | 6 39 Thermal . | . . Explosive . | . . Electromagnetic 10 | . 10 Robot Hit Streak 10 | 5 10 Robot Miss Streak 1 | . 1 Penetration Max . | . . Secondary Targets 1 | . 1 Max Gunslinging Chain 1 | . 1 Shots Hit Robots 45 | 5 40 Core Hits 27 | 2 25 Critical Kills . | . . Critical Parts Destroyed . | . . Critical Strikes . | . . Melee Attacks . | . . Impact . | . . Slashing . | . . Piercing . | . . Sneak Attacks . | . . Combat Hostiles . | . . Follow-up Attacks . | . . Damage Inflicted 602 | 52 550 Guns 462 | 52 410 Cannons . | . . Explosions 93 | . 93 Melee . | . . Ramming 47 | . 47 Kinetic 324 | 52 272 Thermal 93 | . 93 Explosive . | . . Electromagnetic 138 | . 138 Impact . | . . Slashing . | . . Piercing . | . . Highest Corruption 3 | . 3 Average Corruption 1 | . 1 Corruption Purged . | . . Corruption Blocked . | . . Effects 3 | . 3 Message Errors 1 | . 1 Matter Fused 1 | . 1 Energy Discharges 1 | . 1 Overload Shots . | . . Overflow Damage 8 | . 8 Projectiles . | . . Explosions 8 | . 8 Melee . | . . Knockbacks . | . . Impact . | . . Kinetic . | . . Secondary . | . . Self-Inflicted Damage 38 | . 38 Shots 1 | . 1 Rammed 13 | . 13 Targets Rammed 18 | . 18 Kicked 5 | . 5 Crushed . | . . Highest Temperature 159 | 6 159 Average Temperature 60 | 6 64 Received Heat Transfer 711 | 18 693 Siege Activations . | . . Robots Corrupted . | . . Combat Hostiles . | . . Parts Fried . | . . Impact Corruptions . | . . Robots Melted . | . . Combat Hostiles . | . . Parts Melted . | . . Heat Transferred 150 | . 150 Parts Sabotaged . | . . Parts Stolen . | . . Parts Stripped . | . . Power Chain Reactions 1 | . 1 Alert | -11 -10 ------- Run | Yrd Mat Peak Influence 121 | 20 121 Initial 11 | . 11 Average 8 | . 15 Maximum Alert Level . | . . Low Security (%) 100 | 100 100 Level 1 . | . . Level 2 . | . . Level 3 . | . . Level 4 . | . . Level 5 . | . . High Security . | . . Max Security . | . . Squads Dispatched 1 | . 1 Investigation 1 | . 1 Extermination . | . . Reinforcement . | . . Assault . | . . Garrison . | . . Intercept . | . . Searches Triggered . | . . Construction Impeded . | . . Haulers Reinforced . | . . Active Scanning Responses . | . . Cargo Convoy Interrupts . | . . Stealth | -11 -10 --------- Run | Yrd Mat Distress Signals . | . . Communications Jammed . | . . Distress Signals . | . . Times Spotted 15 | 1 14 Peak Tracking Total 3 | 1 3 Tactical Retreats . | . . Traps | -11 -10 ------- Run | Yrd Mat Traps Triggered 3 | . 3 Indirectly . | . . Trap Hack Attempts . | . . Triggered . | . . Disarmed . | . . Reprogrammed . | . . Reused . | . . Traps Extracted . | . . Installed . | . . Triggered . | . . Machines | -11 -10 ---------- Run | Yrd Mat Machines Disabled 1 | . 1 Max in Single Turn 1 | . 1 Machines Repaired . | . . Machines Dismantled . | . . Machines Sabotaged . | . . Overloaded Fab Kills . | . . Hacking | -11 -10 --------- Run | Yrd Mat Machines Accessed 2 | . 2 Terminals 2 | . 2 Fabricators . | . . Repair Stations . | . . Recycling Units . | . . Scanalyzers . | . . Garrison Access . | . . Total Hacks 7 | . 7 Successful 6 | . 6 Failed 1 | . 1 Catastrophic . | . . Database Lockouts . | . . Manual . | . . Terminals 7 | . 7 Fabricators . | . . Repair Stations . | . . Recycling Units . | . . Scanalyzers . | . . Garrison Access . | . . Terminal Hacks 6 | . 6 Emergency Access Points 2 | . 2 Scanalyzer Index 1 | . 1 Alert Level 1 | . 1 Patrol Status 1 | . 1 Transport Status 1 | . 1 Fabricator Hacks . | . . Repair Station Hacks . | . . Recycling Unit Hacks . | . . Scanalyzer . | . . Garrison Access Hacks . | . . Unauthorized Hacks . | . . Terminals . | . . Fabricators . | . . Repair Stations . | . . Recycling Units . | . . Scanalyzers . | . . Garrison Access . | . . Data Cores Recovered . | . . Used . | . . Hacking Detections 2 | . 2 Full Trace Events 1 | . 1 Feedback Events . | . . Feedback Blocked . | . . Robot Schematics Acquired . | . . Robots Built . | . . Authchips . | . . Time . | . . Total Robot Build Rating . | . . Part Schematics Acquired . | . . Parts Built . | . . Authchips . | . . Time . | . . Total Part Build Rating . | . . Parts Repaired . | . . Time . | . . Parts Recycled . | . . Recycled Matter . | . . Retrieved Matter . | . . Retrieved Components . | . . Parts Scanalyzed . | . . Part Schematics Acquired . | . . Parts Damaged . | . . Bothacking | -11 -10 ------------ Run | Yrd Mat Used RIF Installer . | . . Robots Hacked . | . . Non-combat . | . . Combat . | . . Robot Hacks Applied . | . . Relay Couplers Released . | . . Fabnet Peak Effective % . | . . Robots Rewired . | . . Allies Hacked . | . . Hacks Repelled . | . . Allies | -11 -10 -------- Run | Yrd Mat Total Allies . | . . Largest Group . | . . Highest-Rated Group . | . . Highest-Rated Ally . | . . Total Orders . | . . Ally Attacks . | . . Total Damage . | . . Kills . | . . Allies Corrupted . | . . Allies Melted . | . . Intel | -11 -10 ------- Run | Yrd Mat Robot Analysis Total . | . . Derelict Logs Recovered . | . . Drone Launches . | . . Drone Recoveries . | . . Exploration | -11 -10 ------------- Run | Yrd Mat Turns Passed 4011 | 1767 2244 Spaces Moved 470 | 109 361 Core 57 | 38 19 Treads . | . . Legs 413 | 71 342 Wheels . | . . Hover . | . . Flight . | . . Fastest Speed 50 | 50 50 Average Speed 111 | 95 116 Slowest Speed 120 | 120 120 Overloaded Moves . | . . Propulsion Burnouts . | . . Robots Hopped . | . . Cave-ins Triggered . | . . Exploration Rate (%) 29 | 9 50 Regions Visited 1 Branch Regions . Pre-discovered Areas . | . . Known Exits Taken . | . . Unknown Exits Taken 1 | 1 . Scrap Searched . | . . Spaces Dug . | . . Terrain Destroyed 2 | . 2 Melee . | . . Projectile . | . . AOE 2 | . 2 Terrain Rammed . | . . Walls Destroyed . | . . Machines Disabled . | . . Actions | -11 -10 --------- Run | Yrd Mat Total 3909 | 1766 2143 Wait 3356 | 1641 1715 Move 469 | 108 361 Hop . | . . Pick Up 13 | 8 5 Fast Attach . | . . Attach 13 | 6 7 Detach 3 | . 3 Swap 1 | . 1 Drop . | . . Fire 36 | 3 33 Melee . | . . Ram 13 | . 13 Kick 5 | . 5 Crush . | . . Escape Stasis . | . . Rewire . | . . Trap . | . . Miscellaneous . | . . Route ------- -11/Scrapyard -10/Materials (discovered 2 exits: [*Mat x2]) History --------- Turn | Location | Event 2 | -11/Scrapyard | Met Revision 17 1720 | -11/Scrapyard | Discovered new exit (range 8) 1768 | -11/Scrapyard | Entered Materials 1779 | -10/Materials | Build established: Mutant 3705 | -10/Materials | Discovered new exit (range 11) 3817 | -10/Materials | Discovered new exit (range 16) 3991 | -10/Materials | Core integrity fell below 50% 4009 | -10/Materials | Core integrity fell below 20% 4012 | -10/Materials | Destroyed by G-34 Mercenary with Small Laser Last Messages --------------- consequences. 03985_ Acquired 2 matter. 03985_ Kicked G-47 Trooper out of the way. 03986_ Critical hit (Burn: +37). 03987_ Kicked G-47 Trooper out of the way. 03988_ Aluminum Leg destroyed. 03989_ Kicked G-47 Trooper. 03990_ Aluminum Leg destroyed. 03990_ Slammed into G-47 Trooper. 03991_ Destabilizing: System corrupted (+2). 03992_ Ion Engine destroyed. 03992_ Slammed into G-47 Trooper. 03994_ Sensor Array destroyed. 03994_ Slammed into G-47 Trooper. 03998_ Terminal disabled. 04004_ Slammed into G-34 Mercenary. 04007_ System corrupted: Energy discharge (-27). 04008_ Slammed into G-34 Mercenary. 04011_ Slammed into G-47 Trooper. [Achievement: First Step to Greatness] Map ----- +----------------------------------------------------+ | ????????????????????????????# | | ????????????????????????????# = | | ?????????????#??????????????# | | ?????????????# ?????????????###### | | ??????????#### ?????????????????? | | ??????????# ################# | | ??????????# | | ??????????+ | | ??????????# | | ??????????# ############# ###### | | ??????????# #???????????# #????? | | ??????????# #???????????# #????? | | ??????????# +???????????# #????? | | ??????????# #???????????#! #????? | | ??????????# #???????????#%!#????? | | ??????????# #???????????#* #????? | | ??????????# #???????????# #????? | | ??????????+ #???????????# #????? | | ??????????# #???????????# #????? | | ???????#### ############# #????? | | ???????# % #????? | | ???????# %%% #????? | | ???????###+####+#########+####???? | | ???????#g%%% #???????# #???? | | ???????# %g% #???????#| #???? | | ???????# @ #???????# """ #???? | | ???????# #???????#= """ #???? | | ???????# "T #???????# """ #???? | | ???????# #???????# #???? | | ???????########???????########???? | | ?????????????????????????????????? | | | | | | | | | | | | | | | | | | | | | | | | | | | | | | | | | | | | | | | +----------------------------------------------------+ Best States ------------- Heat Dissipation 35 Energy Generation 10 Energy Capacity 250 Matter Stores 300 Matter Capacity 300 Sight Range 16 Robot Scan Range 14 Terrain Scan Density 10 Armor Coverage 150 Resistance: KI 20 Resistance: TH 20 Resistance: EX 20 Resistance: EM 20 Resistance: I 20 Resistance: S 20 Resistance: P 20 Evasion (%) 55 Offensive Hacking 10 Item Schematics ----------------- None Robot Schematics ------------------ None Fabricated ------------ Nothing Alien Tech Used ----------------- None Achievements -------------- Crack Shot First Step to Greatness One Hack Too Far Challenges ------------ None Game ------ Seed ConstructAlloyKit Manual? 0 Play Time 00:27:05 Cumulative 0.4 hours Start 2024.07.03 @ 20:34:46 End 2024.07.04 @ 11:10:19 Sessions 1 Manual Loads 0 Difficulty Adventurer Special Mode None Game No. 1 Rogue 0 Adventurer 1 Explorer 0 Win Type - Total 0 Types 0/0/0/0/0/0/0/0/0 Lore% 0 Gallery% 1 Achievement% 1 Wizard Run 0 Options --------- Layout 1 ASCII 0 Keyboard 0 Movement Mouse Keybinds 0 Fullscreen 1 Font 24/Smallcaps Map View 50x35 Zoom Use 0% Tactical HUD 1 Map Filters NONE Filters NONE Steam 1 RUN: 6509741f-eb59-42c9-a3aa-5e732df6094e